Cogmind - Beta 10.1 @@@ ROGUE MODE // 2021.07.04 @ 20:14:10 Player: W-ALTER Result: Destroyed by S-10 Pest with Light Assault Rifle Performance ------------- Evolutions (1) 500 Regions Visited (3) 600 Robots Destroyed (8) 40 Value Destroyed (97) 97 Prototype IDs (1) 20 Alien Tech Used (0) 0 Bonus (0) 0 TOTAL SCORE: 1257 Bonus ------- None Cogmind --------- Core Integrity 0/400 Matter 107/300 Energy 100/100 System Corruption 0% Temperature Cool (0) Movement Core (50) Location -9/Materials Parts ------- > --- POWER (1) -------- (None) > --- PROPULSION (2) --- (None) > --- UTILITY (4) ------ Visual Processing Unit Visual Processing Unit Terrain Scan Processor Transport Network Coupler > --- WEAPON (2) ------- Heavy Hammer > --- INVENTORY (4) ---- Large Storage Unit Advanced Beam Cannon Peak State ------------ > --- POWER ------------ Light Ion Engine > --- PROPULSION ------- Compact Wheel Flight Unit > --- UTILITY ---------- Visual Processing Unit Visual Processing Unit Visual Processing Unit Terrain Scan Processor > --- WEAPON ----------- Heavy Assault Rifle Rocket Launcher > --- INVENTORY -------- Large Storage Unit Advanced Beam Cannon [Rating: 15] Favorites ----------- Power Light Ion Engine Engine Light Ion Engine Propulsion Compact Wheel Wheel Compact Wheel Flight Unit Flight Unit Utility Visual Processing Unit Storage Small Storage Unit Processor Visual Processing Unit Weapon Assault Rifle Energy Cannon Advanced Beam Cannon Ballistic Gun Assault Rifle Launcher Rocket Launcher Impact Weapon Heavy Hammer Build | -11 -10 -10 -9 ------- Run | Scr Mat Min Mat Slots Evolved 2 | . . . 2 Power . | . . . . Propulsion . | . . . . Utility 2 | . . . 2 Weapon . | . . . . Parts Attached 21 | 6 4 1 10 Power 2 | 1 1 . . Engine 2 | 1 1 . . Core . | . . . . Reactor . | . . . . Propulsion 4 | 2 1 . 1 Treads . | . . . . Leg . | . . . . Wheel 3 | 2 . . 1 Hover . | . . . . Flight 1 | . 1 . . Utility 7 | 1 . 1 5 Device . | . . . . Storage 2 | 1 . 1 . Processor 5 | . . . 5 Hackware . | . . . . Protection . | . . . . Artifact . | . . . . Weapon 8 | 2 2 . 4 Energy Gun . | . . . . Energy Cannon 1 | . 1 . . Ballistic Gun 5 | 2 1 . 2 Ballistic Cannon . | . . . . Launcher 1 | . . . 1 Special Weapon . | . . . . Impact Weapon 1 | . . . 1 Slashing Weapon . | . . . . Piercing Weapon . | . . . . Special Melee Weapon . | . . . . Unidentified Prototypes 1 | . 1 . . Parts Lost 10 | . 5 . 5 Power 2 | . 1 . 1 Propulsion 4 | . 2 . 2 Utility . | . . . . Weapon 4 | . 2 . 2 Highest Loss Streak 5 | . 5 . 4 Average Slot Usage (%) 69 | . 75 . 65 Engine 10 | . 12 . 9 Wheel 14 | . 24 . 8 Flight 4 | . 1 . 6 Storage 5 | . 14 . . Processor 20 | . . . 32 Ballistic Gun 10 | . 21 . 4 Launcher 2 | . . . 4 Naked Turns . | . . . . Heaviest Build 12 | 12 12 3 10 Greatest Support 26 | 26 26 4 16 Greatest Overweight (x) 1 | . 1 . . Average Overweight (x) . | . . . . Largest Inventory Capacity 12 | 6 6 12 4 Average Capacity 4 | 5 6 6 4 Most Carried 4 | 4 3 1 4 Average Carried 1 | . . . 2 Final Capacity 6 | 6 6 4 4 Final Carried 2 | . 1 1 2 Class Distribution -------------------- 100% | Mutant Dominant Class ---------------- Mutant | -10/Materials Mutant | -10/Mines Mutant | -9/Materials Resources | -11 -10 -10 -9 ----------- Run | Scr Mat Min Mat Matter Collected 239 | 239 . . . Remotely . | . . . . Salvage Created 123 | . 17 . 106 Parts 14 | . 1 . 13 Haulers Intercepted 1 | . . . 1 Recyclers Shooed . | . . . . Parts Field Recycled . | . . . . Retrieved Matter . | . . . . Parts Self-Destructed . | . . . . Prevented . | . . . . Kills | -11 -10 -10 -9 ------- Run | Scr Mat Min Mat Combat Hostiles Destroyed 5 | . 1 . 4 Guns 1 | . 1 . . AOE 4 | . . . 4 Classes Destroyed 5 | . 1 . 4 Builder 1 | . . . 1 Hauler 1 | . . . 1 Watcher 1 | . . . 1 Swarmer 4 | . 1 . 3 Grunt 1 | . . . 1 Best Kill Streak 7 | . 1 . 7 Combat Bots Only 4 | . 1 . 4 Max Kills in Single Turn 5 | . 1 . 5 Gunslinging . | . . . . Exploded 3 | . . . 3 Melee . | . . . . Uniques/NPCs Destroyed . | . . . . Combat | -11 -10 -10 -9 -------- Run | Scr Mat Min Mat Damage Taken 1178 | . 473 30 675 Core 535 | . 102 30 403 Absorbed by Shields . | . . . . Core Remaining (%) 73 | 100 . 47 . Volleys Fired 16 | . 10 . 6 Largest 2 | . 2 . 1 Hottest 40 | . 40 . 33 Shots Fired 24 | . 18 . 6 Gun 22 | . 18 . 4 Cannon . | . . . . Launcher 2 | . . . 2 Special . | . . . . Kinetic 22 | . 18 . 4 Thermal . | . . . . Explosive 2 | . . . 2 Electromagnetic . | . . . . Robot Hit Streak 6 | . 6 . 4 Robot Miss Streak 1 | . 1 . 1 Penetration Max . | . . . . Secondary Targets . | . . . . Shots Hit Robots 20 | . 14 . 6 Core Hits 13 | . 3 . 10 Critical Hits 1 | . 1 . . Critical Kills . | . . . . Critical Parts Destroyed 1 | . 1 . . Melee Attacks 4 | . . . 4 Impact 4 | . . . 4 Slashing . | . . . . Piercing . | . . . . Sneak Attacks . | . . . . Combat Hostiles . | . . . . Follow-up Attacks . | . . . . Damage Inflicted 723 | . 161 . 562 Guns 203 | . 161 . 42 Cannons . | . . . . Explosions 444 | . . . 444 Melee 76 | . . . 76 Ramming . | . . . . Kinetic 203 | . 161 . 42 Thermal . | . . . . Explosive 444 | . . . 444 Electromagnetic . | . . . . Impact 76 | . . . 76 Slashing . | . . . . Piercing . | . . . . Highest Corruption . | . . . . Average Corruption . | . . . . Corruption Purged . | . . . . Overload Shots . | . . . . Overflow Damage . | . . . . Projectiles . | . . . . Explosions . | . . . . Melee . | . . . . Knockbacks . | . . . . Impact . | . . . . Kinetic . | . . . . Secondary . | . . . . Self-Inflicted Damage . | . . . . Shots . | . . . . Rammed . | . . . . Targets Rammed . | . . . . Kicked . | . . . . Crushed . | . . . . Highest Temperature 12 | . 12 . . Average Temperature 6 | . 6 . . Received Heat Transfer 210 | . 120 18 72 Siege Activations . | . . . . Robots Corrupted . | . . . . Combat Hostiles . | . . . . Parts Fried . | . . . . Impact Corruptions . | . . . . Robots Melted . | . . . . Combat Hostiles . | . . . . Parts Melted . | . . . . Heat Transferred . | . . . . Parts Sabotaged . | . . . . Parts Stolen . | . . . . Parts Stripped . | . . . . Power Chain Reactions . | . . . . Missiles Intercepted . | . . . . Alert | -11 -10 -10 -9 ------- Run | Scr Mat Min Mat Peak Influence 163 | . 20 . 163 Initial . | . . . . Average 38 | . 4 . 68 Maximum Alert Level . | . . . . Low Security (%) 100 | 100 100 100 100 Level 1 . | . . . . Level 2 . | . . . . Level 3 . | . . . . Level 4 . | . . . . Level 5 . | . . . . High Security . | . . . . Max Security . | . . . . Squads Dispatched 2 | . . . 2 Investigation 2 | . . . 2 Extermination . | . . . . Reinforcement . | . . . . Assault . | . . . . Garrison . | . . . . Intercept . | . . . . Construction Impeded . | . . . . Haulers Reinforced . | . . . . Stealth | -11 -10 -10 -9 --------- Run | Scr Mat Min Mat Distress Signals 2 | . 1 . 1 Communications Jammed . | . . . . Distress Signals . | . . . . Times Spotted 20 | . 5 2 13 Peak Tracking Total 7 | . 5 2 7 Tactical Retreats 1 | . . . 1 Traps | -11 -10 -10 -9 ------- Run | Scr Mat Min Mat Traps Triggered . | . . . . Indirectly . | . . . . Trap Hack Attempts . | . . . . Triggered . | . . . . Disarmed . | . . . . Reprogrammed . | . . . . Reused . | . . . . Traps Extracted . | . . . . Installed . | . . . . Triggered . | . . . . Machines | -11 -10 -10 -9 ---------- Run | Scr Mat Min Mat Machines Disabled . | . . . . Max in Single Turn . | . . . . Machines Sabotaged . | . . . . Garrisons Compromised . | . . . . Overloaded Fab Kills . | . . . . Fab Network Shutdowns . | . . . . Hacking | -11 -10 -10 -9 --------- Run | Scr Mat Min Mat Machines Accessed 3 | . . . 3 Terminals 3 | . . . 3 Fabricators . | . . . . Repair Stations . | . . . . Recycling Units . | . . . . Scanalyzers . | . . . . Garrison Access . | . . . . Total Hacks 7 | . . . 7 Successful 5 | . . . 5 Failed 2 | . . . 2 Catastrophic . | . . . . Database Lockouts . | . . . . Manual 11 | . . . 11 Terminals 7 | . . . 7 Fabricators . | . . . . Repair Stations . | . . . . Recycling Units . | . . . . Scanalyzers . | . . . . Garrison Access . | . . . . Terminal Hacks 5 | . . . 5 Robot Analysis 1 | . . . 1 Unreport Threat 1 | . . . 1 Investigation Status 1 | . . . 1 Recall Investigation 1 | . . . 1 Zone Layout 1 | . . . 1 Fabricator Hacks . | . . . . Repair Station Hacks . | . . . . Recycling Unit Hacks . | . . . . Scanalyzer . | . . . . Garrison Access Hacks . | . . . . Unauthorized Hacks . | . . . . Terminals . | . . . . Fabricators . | . . . . Repair Stations . | . . . . Recycling Units . | . . . . Scanalyzers . | . . . . Garrison Access . | . . . . Data Cores Recovered . | . . . . Used . | . . . . Hacking Detections 5 | . . . 5 Full Trace Events 4 | . . . 4 Feedback Events . | . . . . Feedback Blocked . | . . . . Robot Schematics Acquired . | . . . . Robots Built . | . . . . Matter . | . . . . Time . | . . . . Total Robot Build Rating . | . . . . Part Schematics Acquired . | . . . . Parts Built . | . . . . Matter . | . . . . Time . | . . . . Total Part Build Rating . | . . . . Parts Repaired . | . . . . Time . | . . . . Parts Recycled . | . . . . Recycled Matter . | . . . . Retrieved Matter . | . . . . Retrieved Components . | . . . . Parts Scanalyzed . | . . . . Part Schematics Acquired . | . . . . Parts Damaged . | . . . . Bothacking | -11 -10 -10 -9 ------------ Run | Scr Mat Min Mat Used RIF Installer . | . . . . Robots Hacked . | . . . . Non-combat . | . . . . Combat . | . . . . Robot Hacks Applied . | . . . . Relay Couplers Released . | . . . . Robots Rewired . | . . . . Allies Hacked . | . . . . Hacks Repelled . | . . . . Allies | -11 -10 -10 -9 -------- Run | Scr Mat Min Mat Total Allies . | . . . . Largest Group . | . . . . Highest-Rated Group . | . . . . Highest-Rated Ally . | . . . . Total Orders . | . . . . Ally Attacks . | . . . . Total Damage . | . . . . Kills . | . . . . Allies Corrupted . | . . . . Allies Melted . | . . . . Intel | -11 -10 -10 -9 ------- Run | Scr Mat Min Mat Robot Analysis Total 1 | . . . 1 Derelict Logs Recovered . | . . . . Drone Launches . | . . . . Drone Recoveries . | . . . . Exploration | -11 -10 -10 -9 ------------- Run | Scr Mat Min Mat Turns Passed 402 | 55 127 5 215 Spaces Moved 375 | 59 97 7 212 Core 36 | 22 . . 14 Treads . | . . . . Legs . | . . . . Wheels 246 | 37 86 . 123 Hover . | . . . . Flight 93 | . 11 7 75 Fastest Speed 40 | 50 45 40 40 Average Speed 79 | 75 93 40 75 Slowest Speed 125 | 90 125 40 100 Overloaded Moves . | . . . . Propulsion Burnouts . | . . . . Robots Hopped . | . . . . Cave-ins Triggered . | . . . . Exploration Rate (%) 13 | 3 24 5 23 Regions Visited 3 Branch Regions 1 Pre-discovered Areas . | . . . . Known Exits Taken . | . . . . Unknown Exits Taken 3 | 1 1 1 . Scrap Searched . | . . . . Spaces Dug . | . . . . Terrain Destroyed 18 | . . . 18 Melee . | . . . . Projectile . | . . . . AOE 18 | . . . 18 Terrain Rammed . | . . . . Walls Destroyed . | . . . . Machines Disabled . | . . . . Actions | -11 -10 -10 -9 --------- Run | Scr Mat Min Mat Total 448 | 69 118 9 252 Wait 11 | . . . 11 Move 372 | 58 96 6 212 Hop . | . . . . Pick Up 17 | 5 5 . 7 Fast Attach 5 | 1 . . 4 Attach 15 | 5 4 1 5 Detach 3 | . 1 1 1 Swap 1 | . . . 1 Drop 4 | . 2 1 1 Fire 16 | . 10 . 6 Melee 4 | . . . 4 Ram . | . . . . Kick . | . . . . Crush . | . . . . Escape Stasis . | . . . . Rewire . | . . . . Trap . | . . . . Miscellaneous . | . . . . Route ------- -11/Scrapyard -10/Materials -10/Mines -9/Materials History --------- Turn | Location | Event 14 | -11/Scrapyard | Discovered new exit (range 16) 56 | -11/Scrapyard | Entered Materials 161 | -10/Materials | Discovered new exit (range 14) 183 | -10/Materials | Entered Mines 185 | -10/Mines | Discovered new exit (range 7) 188 | -10/Mines | Entered Materials 188 | -9/Materials | Evolved 2 slots: Utility x2 212 | -9/Materials | Lost 5 parts (1p2n2w) 307 | -9/Materials | Build established: Mutant 378 | -9/Materials | Core integrity fell below 50% 397 | -9/Materials | Core integrity fell below 20% 403 | -9/Materials | Destroyed by S-10 Pest with Light Assault Rifle Last Messages --------------- 00373_ U-05 Engineer builds a Wall. 00375_ K-01 Serf collects debris. 00383_ Com. Wheel destroyed. 00384_ Connecting with Scanalyzer... 00388_ Connecting with Terminal... >>Alert(Purge) Purged threat record, alert level lowered. >>Enumerate(Investigations) Retrieving latest reported positions... Found 1 active investigation squad. Downloaded coordinate data. >>Recall(Investigation) Establishing remote squad link... Recalled investigation squad O9GNGWC1JW. 00388_ ALERT: Suspicious activity at Terminal M011. Dispatching Investigation squad. 00389_ Acquired Hvy. Hammer. 00399_ S-10 Pest destroyed. 00399_ K-01 Serf collects debris. 00401_ W-16 Scout sends out distress signal. Map ----- +----------------------------------------------------+ | ?????# # #???????????????????????? | | ?????# # # #???????????????????????? | | ?????# % """ #???????????????????????? | | ?????# % # """ #???????????????????????? | | ??####/##/# % %# """ #???????????????????????? | | ??# # %## #???????????????????????? | | ??# """ # % ##+########????????????????????? | | ??# "T" ???????????????????? | | ??# " " """ / ??????????????????? | | ??# """ # """ """ """????????????????????? | | ??# """ # """ """ ""?????????????????????? | | ??# # """ """ """ ??????????????????? | | ??# ] # ?????????????????? | | ??########### ?????????????????? | | ????????????# ?????????????????? | | ????????????# #############???????????????????? | | ????????????# # #?????????????????????? | | ????????????# # "" #?????????????????????? | | ????????????# / """ #?????????????????????? | | ????????????# # S" #?????????????????????? | | ????????????# # !![ #?????????????????????? | | ????????????# # ![ #?????????????????????? | | ??????????? # ![ #?????????????????????? | | ??????????#### # w #?????????????????????? | | ?????????????# a ########s##?????????????????????? | | ?????????????# #????###@###????????????????????? | | ????????????# ##### s #????????????????????? | | ?????? Y #????????????????????? | | ?????? k T +????????????????????? | | ?????? #????????????????????? | | ????????##### ##### #????????????????????? | | ????????????###+###???## ##????????????????????? | | ???????????????????????# #?????????????????????? | | ???????????????????????# +?????????????????????? | | ???????????????????????# #?????????????????????? | | ???????????????????????# #?????????????????????? | | ???????????????????????# #?????????????????????? | | ???????????????????????# #?????????????????????? | | ???????????????????????# #?????????????????????? | | ???????????????????????# #?????????????????????? | | ???????????????????????# #?????????????????????? | | ???????????????????????##+##?????????????????????? | | ?????????????????????????????????????????????????? | | ?????????????????????????????????????????????????? | | ?????????????????????????????????????????????????? | | ????????????????????????????????a????????????????? | | ?????????????????????????????????????????????????? | | ?????????????????????????????????????????????????? | | ?????????????????????????????????????????????????? | | ?????????????????????????????????????????????????? | +----------------------------------------------------+ Best States ------------- Heat Dissipation 28 Energy Generation 10 Energy Capacity 250 Matter Stores 279 Matter Capacity 300 Sight Range 18 Terrain Scan Density 85 Evasion (%) 62 Item Schematics ----------------- None Robot Schematics ------------------ None Fabricated ------------ Nothing Alien Tech Used ----------------- None Achievements -------------- None Challenges ------------ None Game ------ Seed LaserBackupKit Manual? 0 Play Time 00:13:01 Cumulative 6.4 hours Start 2021.07.04 @ 20:04:09 End 2021.07.04 @ 20:14:10 Sessions 1 Manual Loads 0 Difficulty Rogue Special Mode None Game No. 15 Rogue 15 Adventurer 0 Explorer 0 Win Type - Total 0 Types 0/0/0/0/0/0/0/0/0 Lore% 18 Gallery% 12 Achievement% 15 Wizard Run 0 Options --------- ASCII 0 Keyboard 0 Movement Mouse Keybinds 0 Fullscreen 1 Font 12/Smallcaps Map View 83x54 Tactical HUD 1 Map Filters NONE Filters NONE Steam X RUN: 10c216c0-f15d-404b-87c7-843de117593d